fUSD/lending_fUSD_20240526
["ID","MTS","AMOUNT","RATE_DAILY","PERIOD"]
[327942921,1716689463311,-500.0,0.00031506,5]
[327942922,1716689463321,-550.1134857,0.00031506,5]
[327942923,1716689463331,-504.52022677,0.00031506,5]
[327942924,1716689463340,-500.0,0.00031506,5]
[327942925,1716689463350,-500.0,0.00031506,5]
[327942926,1716689463360,-530.65481698,0.00031506,5]
[327942927,1716689463369,-500.0,0.00031506,5]
[327942928,1716689463379,-500.0,0.00031506,5]
[327942929,1716689463388,-500.0,0.00031506,5]
[327942930,1716689463398,-1533.82,0.00031506,5]
[327942931,1716689463546,-500.0,0.00031506,5]
[327942932,1716689463573,-521.52566301,0.00031506,5]
[327942933,1716689463583,-500.0,0.00031506,5]
[327942934,1716689463592,-500.0,0.00031506,5]
[327942935,1716689463602,-500.0,0.00031506,5]
[327942936,1716689463611,-532.3358469,0.00031506,5]
[327942937,1716689463621,-1324.01,0.00031506,5]
[327942938,1716689463630,-510.72,0.00031506,5]
[327942939,1716689463640,-534.86227845,0.00031506,5]
[327942940,1716689463650,-500.0,0.00031506,5]
[327942941,1716689463659,-500.0,0.00031506,5]
[327942942,1716689463669,-500.0,0.00031506,5]
[327942943,1716689463680,-500.0,0.00031506,5]
[327942944,1716689463691,-500.0,0.00031506,5]
[327942945,1716689463701,-500.0,0.00031506,5]
[327942946,1716689463711,-574.44812592,0.00031506,5]
[327942947,1716689463720,-500.0,0.00031506,5]
[327942948,1716689463731,-519.19094109,0.00031506,5]
[327942949,1716689463742,-500.0,0.00031506,5]
[327942950,1716689463751,-500.0,0.00031506,5]
[327942951,1716689463760,-500.0,0.00031506,5]
[327942952,1716689463769,-745.95,0.00031506,5]
[327942953,1716689463778,-500.0,0.00031506,5]
[327942954,1716689463787,-545.03896376,0.00031506,5]
[327942955,1716689463798,-500.0,0.00031506,5]
[327942956,1716689463808,-152.66199662,0.00031506,2]
[327942957,1716689463818,-643.54,0.00031506,5]
[327942958,1716689463827,-1399.66,0.00031506,5]
[327942959,1716689463836,-500.0,0.00031506,5]
[327942960,1716689463845,-500.0,0.00031506,2]
[327942961,1716689463855,-500.0,0.00031506,5]
[327942962,1716689463864,-549.86,0.00031506,5]
[327942963,1716689463874,-500.0,0.00031506,5]
[327942964,1716689463884,-500.0,0.00031506,5]
[327942965,1716689463893,-500.0,0.00031506,5]
[327942966,1716689463903,-510.17889461,0.00031506,5]
[327942967,1716689463912,-500.0,0.00031506,5]
[327942968,1716689463922,-500.0,0.00031506,5]
[327942969,1716689463931,-500.0,0.00031506,5]
[327942970,1716689463940,-500.0,0.00031506,5]
[327942971,1716689463949,-509.90612705,0.00031506,5]
[327942972,1716689463958,-464.14934074,0.00031506,5]
[327942973,1716689463967,-500.0,0.00031506,5]
[327942974,1716689463977,-516.11404596,0.00031506,5]
[327942975,1716689463986,-642.01,0.00031506,5]
[327942976,1716689463996,-530.91396249,0.00031506,5]
[327942977,1716689464006,-500.0,0.00031506,5]
[327942978,1716689464015,-524.59651192,0.00031506,5]
[327942979,1716689464024,-500.0,0.00031506,5]
[327942980,1716689464034,-522.78244362,0.00031506,5]
[327942981,1716689464044,-703.66,0.00031506,5]
[327942982,1716689464054,-500.0,0.00031506,5]
[327942983,1716689464063,-517.804403,0.00031506,5]
[327942984,1716689464073,-3714.68,0.00031506,5]
[327942985,1716689464082,-500.0,0.00031506,5]
[327942986,1716689464092,-500.0,0.00031506,5]
[327942987,1716689464101,-500.0,0.00031506,5]
[327942988,1716689464112,-511.35058862,0.00031506,5]
[327942989,1716689464121,-651.9,0.00031506,5]
[327942990,1716689464131,-500.0,0.00031506,5]
[327942991,1716689464140,-513.38785348,0.00031506,5]
[327942992,1716689464150,-500.0,0.00031506,5]
[327942993,1716689464159,-519.15429315,0.00031506,5]
[327942994,1716689464169,-620.85,0.00031506,5]
[327942995,1716689464178,-500.0,0.00031506,5]
[327942996,1716689464188,-527.4905992,0.00031506,5]
[327942997,1716689464197,-500.0,0.00031506,5]
[327942998,1716689464207,-500.0,0.00031506,5]
[327942999,1716689464217,-515.83214707,0.00031506,5]
[327943000,1716689464226,-512.97245161,0.00031506,5]
[327943001,1716689464236,-1054.23,0.00031506,5]
[327943002,1716689464246,-500.0,0.00031506,5]
[327943003,1716689464256,-500.0,0.00031506,5]
[327943004,1716689464265,-500.0,0.00031506,5]
[327943005,1716689464276,-500.0,0.00031506,5]
[327943006,1716689464285,-500.0,0.00031506,5]
[327943007,1716689464295,-521.45,0.00031506,5]
[327943008,1716689464306,-500.0,0.00031506,5]
[327943009,1716689464316,-500.0,0.00031506,5]
[327943010,1716689464325,-560.19494218,0.00031506,5]
[327943011,1716689464335,-782.44,0.00031506,5]
[327943012,1716689464344,-500.0,0.00031506,5]
[327943013,1716689464354,-500.0,0.00031506,5]
[327943014,1716689464363,-500.0,0.00031506,5]
[327943015,1716689464372,-500.0,0.00031506,5]
[327943016,1716689464381,-500.0,0.00031506,5]
[327943017,1716689464390,-500.0,0.00031506,5]
[327943018,1716689464400,-500.0,0.00031506,5]
[327943019,1716689464409,-500.0,0.00031506,5]
[327943020,1716689464419,-1229.45,0.00031506,5]
[327943021,1716689464428,-500.0,0.00031506,5]
[327943022,1716689464438,-500.0,0.00031506,5]
[327943023,1716689464452,-500.0,0.00031506,5]
[327943024,1716689464462,-500.0,0.00031506,5]
[327943025,1716689464471,-500.0,0.00031506,5]
[327943026,1716689464480,-605.47491979,0.00031506,5]
[327943027,1716689464492,-500.0,0.00031506,5]
[327943028,1716689464501,-511.88260809,0.00031506,5]
[327943029,1716689464510,-633.37,0.00031506,5]
[327943030,1716689464520,-525.78875921,0.00031506,5]
[327943031,1716689464531,-344.45267515,0.00031506,5]
[327943032,1716689464541,-510.09338545,0.00031506,5]
[327943033,1716689464550,-500.0,0.00031506,5]
[327943034,1716689464560,-500.0,0.00031506,5]
[327943035,1716689464570,-500.0,0.00031506,2]
[327943036,1716689464580,-514.77075174,0.00031506,5]
[327943037,1716689464589,-649.42,0.00031506,5]
[327943038,1716689464598,-500.0,0.00031506,5]
[327943039,1716689464607,-500.0,0.00031506,5]
[327943040,1716689464617,-535.18616979,0.00031506,5]
[327943041,1716689464627,-522.05864819,0.00031506,5]
[327943042,1716689464636,-500.0,0.00031506,5]
[327943043,1716689464645,-505.69168007,0.00031506,5]
[327943044,1716689464655,-848.23,0.00031506,5]
[327943045,1716689464664,-539.57533583,0.00031506,5]
[327943046,1716689464673,-509.81699456,0.00031506,5]
[327943047,1716689464683,-1479.33,0.00031506,5]
[327943048,1716689464693,-500.0,0.00031506,5]
[327943049,1716689464702,-530.44192899,0.00031506,5]
[327943050,1716689464711,-500.0,0.00031506,5]
[327943051,1716689464721,-500.0,0.00031506,5]
[327943052,1716689464730,-656.31,0.00031506,5]
[327943053,1716689464741,-519.89415583,0.00031506,5]
[327943054,1716689464751,-508.24869522,0.00031506,5]
[327943055,1716689464760,-500.0,0.00031506,5]
[327943056,1716689464769,-500.0,0.00031506,5]
[327943057,1716689464779,-526.7574365,0.00031506,5]
[327943058,1716689464788,-20000.0,0.00031506,2]
[327943059,1716689464798,-516.34715151,0.00031506,5]
[327943060,1716689464807,-500.0,0.00031506,5]
[327943061,1716689464816,-500.0,0.00031506,5]
[327943062,1716689464826,-500.0,0.00031506,5]
[327943063,1716689464836,-513.27043456,0.00031506,5]
[327943064,1716689464846,-534.87249921,0.00031506,5]
[327943065,1716689464856,-1156.98,0.00031506,5]
[327943066,1716689464865,-500.0,0.00031506,5]
[327943067,1716689464875,-500.0,0.00031506,5]
[327943068,1716689464884,-516.88091909,0.00031506,5]
[327943069,1716689464893,-507.44,0.00031506,5]
[327943070,1716689464903,-533.6615072,0.00031506,5]
[327943071,1716689464912,-500.0,0.00031506,5]
[327943072,1716689464923,-508.50959239,0.00031506,5]
[327943073,1716689464932,-513.89915317,0.00031506,5]
[327943074,1716689464943,-500.0,0.00031506,5]
[327943075,1716689464952,-532.68414394,0.00031506,5]
[327943076,1716689464962,-500.0,0.00031506,5]
[327943077,1716689464971,-526.16687761,0.00031506,5]
[327943078,1716689464981,-500.0,0.00031506,5]
[327943079,1716689464991,-516.19028535,0.00031506,5]
[327943080,1716689465001,-1130.57,0.00031506,5]
[327943081,1716689465010,-1000.0,0.00031506,2]
[327943082,1716689465019,-627.87,0.00031506,5]
[327943083,1716689465029,-526.04343893,0.00031506,5]
[327943084,1716689465039,-834.9,0.00031506,5]
[327943085,1716689465049,-528.01843446,0.00031506,5]
[327943086,1716689465058,-377.30646697,0.00031506,5]
[327943087,1716689465068,-500.0,0.00031506,5]
[327943088,1716689465077,-530.19181357,0.00031506,5]
[327943089,1716689465087,-500.0,0.00031506,5]
[327943090,1716689465096,-516.19746173,0.00031506,5]
[327943091,1716689465106,-1005.78,0.00031506,5]
[327943092,1716689465115,-500.0,0.00031506,5]
[327943093,1716689465125,-500.0,0.00031506,5]
[327943094,1716689465133,-500.0,0.00031506,5]
[327943095,1716689465143,-500.0,0.00031506,5]
[327943096,1716689465152,-500.0,0.00031506,5]
[327943097,1716689465161,-500.0,0.00031506,5]
[327943098,1716689465170,-580.77449661,0.00031506,5]
[327943099,1716689465180,-514.54546267,0.00031506,5]
[327943100,1716689465189,-500.0,0.00031506,5]
[327943101,1716689465198,-1521.04,0.00031506,5]
[327943102,1716689465207,-500.0,0.00031506,5]
[327943103,1716689465217,-510.03788025,0.00031506,5]
[327943104,1716689465226,-510.11326799,0.00031506,5]
[327943105,1716689465236,-934.1,0.00031506,5]
[327943106,1716689465248,-1113.26,0.00031506,5]
[327943107,1716689465259,-605.61141865,0.00031506,5]
[327943108,1716689465268,-560.08393028,0.00031506,5]
[327943109,1716689465278,-532.12724318,0.00031506,5]
[327943110,1716689465288,-620.13893471,0.00031506,5]
[327943111,1716689465297,-512.94075503,0.00031506,5]
[327943112,1716689465307,-500.0,0.00031506,5]
[327943113,1716689465316,-500.0,0.00031506,5]
[327943114,1716689465326,-524.36729921,0.00031506,5]
[327943115,1716689465336,-606.03,0.00031506,5]
[327943116,1716689465345,-500.0,0.00031506,5]
[327943117,1716689465355,-500.0,0.00031506,5]
[327943118,1716689465365,-519.21089274,0.00031506,5]
[327943119,1716689465374,-150.0,0.00031506,5]
[327943120,1716689465383,-516.67587197,0.00031506,5]
[327943121,1716689465392,-233.32020268,0.00031506,5]
[327943122,1716689465402,-508.01341407,0.00031506,5]
[327943123,1716689465411,-517.16184699,0.00031506,5]
[327943124,1716689465420,-512.66614571,0.00031506,5]
[327943125,1716689465429,-500.0,0.00031506,5]
[327943126,1716689465439,-510.42907487,0.00031506,5]
[327943127,1716689465453,-520.94867741,0.00031506,5]
[327943128,1716689465462,-500.0,0.00031506,5]
[327943129,1716689465472,-520.00767681,0.00031506,5]
[327943130,1716689465482,-500.0,0.00031506,5]
[327943131,1716689465492,-500.0,0.00031506,5]
[327943132,1716689465502,-515.15458323,0.00031506,5]
[327943133,1716689465511,-500.0,0.00031506,5]
[327943134,1716689465523,-552.44,0.00031506,5]
[327943135,1716689465532,-500.0,0.00031506,5]
[327943136,1716689465542,-500.0,0.00031506,5]
[327943137,1716689465551,-500.0,0.00031506,5]
[327943138,1716689465561,-500.0,0.00031506,5]
[327943139,1716689465570,-500.0,0.00031506,5]
[327943140,1716689465580,-1508.31,0.00031506,5]
[327943141,1716689465589,-500.0,0.00031506,5]
[327943142,1716689465598,-500.0,0.00031506,5]
[327943143,1716689465607,-500.0,0.00031506,5]
[327943144,1716689465616,-500.0,0.00031506,5]
[327943145,1716689465625,-1578.22,0.00031506,5]
[327943146,1716689465634,-890.7,0.00031506,5]
[327943147,1716689465643,-500.0,0.00031506,5]
[327943148,1716689465653,-514.66153311,0.00031506,5]
[327943149,1716689465662,-523.38017473,0.00031506,5]
[327943150,1716689465672,-500.0,0.00031506,5]
[327943151,1716689465682,-500.0,0.00031506,5]
[327943152,1716689465691,-500.0,0.00031506,5]
[327943153,1716689465703,-500.0,0.00031506,5]
[327943154,1716689465713,-500.0,0.00031506,5]
[327943155,1716689465723,-500.0,0.00031506,5]
[327943156,1716689465734,-510.99934136,0.00031506,5]
[327943157,1716689465746,-500.0,0.00031506,5]
[327943158,1716689465755,-392.4092374,0.00031506,5]
[327943159,1716689465765,-707.92,0.00031506,5]
[327943160,1716689465775,-524.46005316,0.00031506,5]
[327943161,1716689465784,-547.15243056,0.00031506,5]
[327943162,1716689465794,-539.01528791,0.00031506,5]
[327943163,1716689465803,-500.0,0.00031506,5]
[327943164,1716689465813,-500.0,0.00031506,5]
[327943165,1716689465822,-500.0,0.00031506,5]
[327943166,1716689465832,-500.0,0.00031506,5]
[327943167,1716689465842,-500.0,0.00031506,5]
[327943168,1716689465851,-500.0,0.00031506,5]
[327943169,1716689465861,-1646.88,0.00031506,5]
[327943170,1716689465871,-1398.68,0.00031506,5]
[327943171,1716689465883,-500.0,0.00031506,5]
[327943172,1716689465895,-500.0,0.00031506,5]
[327943173,1716689465905,-520.08232512,0.00031506,5]
[327943174,1716689465914,-500.0,0.00031506,5]
[327943175,1716689465924,-569.4,0.00031506,5]
[327943176,1716689465933,-998.63,0.00031506,5]
[327943177,1716689465943,-520.47078613,0.00031506,5]
[327943178,1716689465954,-500.0,0.00031506,5]
[327943179,1716689465963,-500.0,0.00031506,5]
[327943180,1716689465973,-500.0,0.00031506,5]
[327943181,1716689465983,-1000.0,0.00031506,5]
[327943182,1716689465995,-500.0,0.00031506,5]
[327943183,1716689466004,-500.0,0.00031506,5]
[327943184,1716689466013,-500.0,0.00031506,5]
[327943185,1716689466022,-606.87,0.00031506,5]
[327943186,1716689466031,-500.0,0.00031506,5]
[327943187,1716689466040,-500.0,0.00031506,5]
[327943188,1716689466051,-500.0,0.00031506,5]
[327943189,1716689466060,-516.51318803,0.00031506,5]
[327943190,1716689466222,-500.0,0.00031506,5]
[327943191,1716689466231,-500.0,0.00031506,5]
[327943192,1716689466242,-741.46,0.00031506,5]
[327943193,1716689466251,-500.0,0.00031506,5]
[327943194,1716689466259,-570.63,0.00031506,5]
[327943195,1716689466269,-599.6,0.00031506,5]
[327943196,1716689466278,-599.6,0.00031506,5]
[327943197,1716689466287,-599.6,0.00031506,5]
[327943198,1716689466297,-599.6,0.00031506,5]
[327943199,1716689466306,-599.6,0.00031506,5]
[327943200,1716689466316,-599.6,0.00031506,5]
[327943201,1716689466325,-508.39309722,0.00031506,5]
[327943202,1716689466335,-599.6,0.00031506,5]
[327943203,1716689466344,-599.6,0.00031506,5]
[327943204,1716689466354,-599.6,0.00031506,5]
[327943205,1716689466363,-599.6,0.00031506,5]
[327943206,1716689466372,-599.6,0.00031506,5]
[327943207,1716689466381,-500.0,0.00031506,5]
[327943208,1716689466391,-525.68,0.00031506,5]
[327943209,1716689466400,-599.6,0.00031506,5]
[327943210,1716689466409,-500.0,0.00031506,5]
[327943211,1716689466419,-599.6,0.00031506,5]
[327943212,1716689466428,-599.6,0.00031506,5]
[327943213,1716689466438,-773.16,0.00031506,5]
[327943214,1716689466452,-599.6,0.00031506,5]
[327943215,1716689466461,-599.6,0.00031506,5]
[327943216,1716689466471,-500.0,0.00031506,5]
[327943217,1716689466480,-599.6,0.00031506,5]
[327943218,1716689466491,-1000.0,0.00031506,5]
[327943219,1716689466501,-599.6,0.00031506,5]
[327943220,1716689466510,-599.6,0.00031506,5]
[327943221,1716689466521,-500.0,0.00031506,5]
[327943222,1716689466530,-599.6,0.00031506,5]
[327943223,1716689466539,-599.6,0.00031506,5]
[327943224,1716689466549,-500.0,0.00031506,5]
[327943225,1716689466558,-599.6,0.00031506,5]
[327943226,1716689466567,-500.0,0.00031506,5]
[327943227,1716689466576,-599.6,0.00031506,5]
[327943228,1716689466585,-599.62671223,0.00031506,5]
[327943229,1716689466594,-500.0,0.00031506,5]
[327943230,1716689466604,-500.0,0.00031506,5]
[327943231,1716689466613,-500.0,0.00031506,5]
[327943232,1716689466622,-500.0,0.00031506,5]
[327943233,1716689466631,-500.0,0.00031506,5]
[327943234,1716689466641,-500.0,0.00031506,5]
[327943235,1716689466650,-500.0,0.00031506,5]
[327943236,1716689466659,-500.0,0.00031506,5]
[327943237,1716689466668,-660.47,0.00031506,5]
[327943238,1716689466677,-158.52459776,0.00031506,5]
[327943239,1716689466687,-510.91246954,0.00031506,5]
[327943240,1716689466697,-500.0,0.00031506,5]
[327943241,1716689466706,-1136.2,0.00031506,5]
[327943242,1716689466716,-500.0,0.00031506,5]
[327943243,1716689466725,-500.0,0.00031506,5]
[327943244,1716689466734,-500.0,0.00031506,5]
[327943245,1716689466745,-500.0,0.00031506,5]
[327943246,1716689466755,-500.0,0.00031506,5]
[327943247,1716689466765,-1120.09,0.00031506,5]
[327943248,1716689466775,-500.0,0.00031506,5]
[327943249,1716689466784,-500.0,0.00031506,5]
[327943250,1716689466794,-500.0,0.00031506,5]
[327943251,1716689466804,-500.0,0.00031506,5]
[327943252,1716689466815,-799.61,0.00031506,5]
[327943253,1716689466825,-500.0,0.00031506,5]
[327943254,1716689466835,-603.81,0.00031506,5]
[327943255,1716689466845,-500.0,0.00031506,5]
[327943256,1716689466854,-500.0,0.00031506,5]
[327943257,1716689466863,-500.0,0.00031506,5]
[327943258,1716689466874,-500.0,0.00031506,5]
[327943259,1716689466884,-500.0,0.00031506,5]
[327943260,1716689466894,-506.65921069,0.00031506,5]
[327943261,1716689466904,-500.0,0.00031506,5]
[327943262,1716689466914,-500.0,0.00031506,5]
[327943263,1716689466924,-688.41471873,0.00031506,3]
[327943264,1716689466934,-553.6744948,0.00031506,5]
[327943265,1716689466943,-500.0,0.00031506,5]
[327943266,1716689466953,-500.0,0.00031506,5]
[327943267,1716689466962,-500.0,0.00031506,5]
[327943268,1716689466973,-500.0,0.00031506,5]
[327943269,1716689466983,-500.0,0.00031506,5]
[327943270,1716689466993,-500.0,0.00031506,5]
[327943271,1716689467003,-2867.24,0.00031506,5]
[327943272,1716689467013,-500.0,0.00031506,5]
[327943273,1716689467022,-1143.3,0.00031506,5]
[327943274,1716689467032,-527.60563168,0.00031506,5]
[327943275,1716689467042,-632.63935394,0.00031506,5]
[327943276,1716689467051,-500.0,0.00031506,5]
[327943277,1716689467062,-512.46994876,0.00031506,5]
[327943278,1716689467072,-500.0,0.00031506,5]
[327943279,1716689467083,-532.35776232,0.00031506,5]
[327943280,1716689467094,-500.0,0.00031506,5]
[327943281,1716689467103,-500.0,0.00031506,5]
[327943282,1716689467112,-500.0,0.00031506,5]
[327943283,1716689467122,-740.37,0.00031506,5]
[327943284,1716689467131,-500.0,0.00031506,5]
[327943285,1716689467140,-500.0,0.00031506,5]
[327943286,1716689467149,-521.97721703,0.00031506,5]
[327943287,1716689467158,-500.0,0.00031506,5]
[327943288,1716689467168,-500.0,0.00031506,5]
[327943289,1716689467178,-523.82794889,0.00031506,5]
[327943290,1716689467187,-500.0,0.00031506,5]
[327943291,1716689467196,-500.0,0.00031506,5]
[327943292,1716689467206,-916.37,0.00031506,5]
[327943293,1716689467215,-500.0,0.00031506,5]
[327943294,1716689467225,-500.0,0.00031506,5]
[327943295,1716689467234,-500.0,0.00031506,5]
[327943296,1716689467245,-500.0,0.00031506,5]
[327943297,1716689467254,-500.0,0.00031506,5]
[327943298,1716689467263,-500.0,0.00031506,5]
[327943299,1716689467272,-500.0,0.00031506,5]
[327943300,1716689467282,-500.0,0.00031506,5]
[327943301,1716689467290,-331.54223364,0.00031506,5]
[327943302,1716689467300,-500.0,0.00031506,5]
[327943303,1716689467309,-1098.1,0.00031506,5]
[327943304,1716689467318,-500.0,0.00031506,5]
[327943305,1716689467327,-526.08490167,0.00031506,5]
[327943306,1716689467338,-500.0,0.00031506,5]
[327943307,1716689467348,-500.0,0.00031506,5]
[327943308,1716689467357,-510.20969896,0.00031506,5]
[327943309,1716689467367,-830.5,0.00031506,5]
[327943310,1716689467376,-630.46,0.00031506,5]
[327943311,1716689467385,-500.0,0.00031506,5]
[327943312,1716689467394,-500.0,0.00031506,5]
[327943313,1716689467403,-500.0,0.00031506,5]
[327943314,1716689467412,-500.0,0.00031506,5]
[327943315,1716689467421,-661.61,0.00031506,5]
[327943316,1716689467430,-500.0,0.00031506,5]
[327943317,1716689467440,-306.35872647,0.00031506,5]
[327943318,1716689467452,-528.1107117,0.00031506,5]
[327943319,1716689467462,-550.99,0.00031506,5]
[327943320,1716689467471,-500.0,0.00031506,5]
[327943321,1716689467481,-536.99590512,0.00031506,5]
[327943322,1716689467491,-1244.61,0.00031506,5]
[327943323,1716689467500,-550.9585595,0.00031506,5]
[327943324,1716689467510,-500.0,0.00031506,5]
[327943325,1716689467522,-543.63805653,0.00031506,5]
[327943326,1716689467533,-1606.31,0.00031506,5]
[327943327,1716689467542,-1606.31,0.00031506,5]
[327943328,1716689467551,-1606.31,0.00031506,5]
[327943329,1716689467561,-596.8,0.00031506,5]
[327943330,1716689467571,-500.0,0.00031506,5]
[327943331,1716689467582,-1606.31,0.00031506,5]
[327943332,1716689467592,-1606.31,0.00031506,5]
[327943333,1716689467602,-1606.31,0.00031506,5]
[327943334,1716689467611,-500.0,0.00031506,5]
[327943335,1716689467620,-1606.31,0.00031506,5]
[327943336,1716689467629,-1606.31,0.00031506,5]
[327943337,1716689467639,-1606.31,0.00031506,5]
[327943338,1716689467648,-1606.31,0.00031506,5]
[327943339,1716689467657,-500.0,0.00031506,5]
[327943340,1716689467667,-1606.31,0.00031506,5]
[327943341,1716689467677,-500.0,0.00031506,5]
[327943342,1716689467686,-1606.31,0.00031506,5]
[327943343,1716689467695,-500.0,0.00031506,5]
[327943344,1716689467704,-1606.31,0.00031506,5]
[327943345,1716689467713,-1606.31,0.00031506,5]
[327943346,1716689467722,-1606.31,0.00031506,5]
[327943347,1716689467731,-1606.31,0.00031506,5]
[327943348,1716689467742,-500.0,0.00031506,5]
[327943349,1716689467751,-1606.31,0.00031506,5]
[327943350,1716689467760,-1606.31,0.00031506,5]
[327943351,1716689467769,-1606.31,0.00031506,5]
[327943352,1716689467778,-1606.31,0.00031506,5]
[327943353,1716689467787,-1606.31,0.00031506,5]
[327943354,1716689467796,-500.0,0.00031506,5]
[327943355,1716689467805,-500.0,0.00031506,5]
[327943356,1716689467814,-1606.31,0.00031506,5]
[327943357,1716689467823,-1606.31,0.00031506,5]
[327943358,1716689467832,-1606.480912,0.00031506,5]
[327943359,1716689467842,-500.0,0.00031506,5]
[327943360,1716689467851,-500.0,0.00031506,5]
[327943361,1716689467860,-500.0,0.00031506,5]
[327943362,1716689467869,-647.89,0.00031506,5]
[327943363,1716689467878,-500.0,0.00031506,5]
[327943364,1716689467888,-666.05,0.00031506,5]
[327943365,1716689467897,-500.0,0.00031506,5]
[327943366,1716689467906,-500.0,0.00031506,5]
[327943367,1716689467915,-706.29,0.00031506,5]
[327943368,1716689467924,-500.0,0.00031506,5]
[327943369,1716689467933,-1354.97,0.00031506,5]
[327943370,1716689467943,-522.4889598,0.00031506,5]
[327943371,1716689467953,-500.0,0.00031506,5]
[327943372,1716689467964,-506.75723509,0.00031506,5]
[327943373,1716689467973,-521.96945725,0.00031506,5]
[327943374,1716689467984,-507.17208862,0.00031506,5]
[327943375,1716689467994,-500.0,0.00031506,5]
[327943376,1716689468003,-500.0,0.00031506,5]
[327943377,1716689468013,-1131.77,0.00031506,5]
[327943378,1716689468024,-500.0,0.00031506,5]
[327943379,1716689468033,-520.91616133,0.00031506,5]
[327943380,1716689468044,-500.0,0.00031506,5]
[327943381,1716689468053,-300.0,0.00031506,5]
[327943382,1716689468063,-517.77607119,0.00031506,5]
[327943383,1716689468072,-500.0,0.00031506,5]
[327943384,1716689468081,-500.0,0.00031506,5]
[327943385,1716689468090,-937.41,0.00031506,5]
[327943386,1716689468099,-1076.65,0.00031506,5]
[327943387,1716689468108,-500.0,0.00031506,5]
[327943388,1716689468117,-794.53,0.00031506,5]
[327943389,1716689468127,-500.0,0.00031506,5]
[327943390,1716689468137,-500.0,0.00031506,5]
[327943391,1716689468149,-500.0,0.00031506,5]
[327943392,1716689468159,-508.7,0.00031506,5]
[327943393,1716689468168,-558.06,0.00031506,5]
[327943394,1716689468177,-510.1774321,0.00031506,5]
[327943395,1716689468186,-500.0,0.00031506,5]
[327943396,1716689468195,-607.70292024,0.00031506,5]
[327943397,1716689468204,-500.0,0.00031506,5]
[327943398,1716689468213,-500.0,0.00031506,5]
[327943399,1716689468222,-500.0,0.00031506,5]
[327943400,1716689468231,-500.0,0.00031506,5]
[327943401,1716689468240,-534.36011731,0.00031506,5]
[327943402,1716689468250,-500.0,0.00031506,5]
[327943403,1716689468260,-500.0,0.00031506,5]
[327943404,1716689468269,-1051.06,0.00031506,5]
[327943405,1716689468279,-517.97842197,0.00031506,5]
[327943406,1716689468289,-816.68,0.00031506,5]
[327943407,1716689468300,-522.37328629,0.00031506,5]
[327943408,1716689468311,-500.0,0.00031506,5]
[327943409,1716689468320,-500.0,0.00031506,5]
[327943410,1716689468329,-475.12811842,0.00031506,5]
[327943411,1716689468338,-500.0,0.00031506,5]
[327943412,1716689468348,-298.60823111,0.00031506,5]
[327943413,1716689468358,-500.0,0.00031506,5]
[327943414,1716689468368,-576.61,0.00031506,5]
[327943415,1716689468378,-500.0,0.00031506,5]
[327943416,1716689468389,-504.46860384,0.00031506,5]
[327943417,1716689468398,-500.0,0.00031506,5]
[327943418,1716689468408,-500.0,0.00031506,5]
[327943419,1716689468418,-500.0,0.00031506,5]
[327943420,1716689468428,-500.0,0.00031506,5]